[Event "*** Titled Tuesday Blitz"]
[Site "Chess.com"]
[Date "2020.12.29"]
[Round "5"]
[White "annacramling"]
[Black "PenguinPacks"]
[Result "1/2-1/2"]
[WhiteElo "2089"]
[BlackElo "2461"]
[TimeControl "180+1"]
[EndTime "10:55:58 PST"]
[Termination "Game drawn by repetition"]

1. d4 {[%clk 0:03:00.9]} 1... Nf6 {[%clk 0:02:58.5]} 2. c4 {[%clk 0:03:00.3]}
2... e6 {[%clk 0:02:58.7]} 3. Nc3 {[%clk 0:03:00]} 3... Bb4 {[%clk 0:02:58.8]}
4. Qc2 {[%clk 0:02:59.8]} 4... O-O {[%clk 0:02:58.8]} 5. e4 {[%clk 0:02:53]}
5... d6 {[%clk 0:02:55.9]} 6. e5 {[%clk 0:02:49.3]} 6... dxe5 {[%clk 0:02:49.3]}
7. dxe5 {[%clk 0:02:50.2]} 7... Ng4 {[%clk 0:02:35.3]} 8. Nf3 {[%clk 0:02:40.9]}
8... Nc6 {[%clk 0:02:23.8]} 9. Bf4 {[%clk 0:02:29.7]} 9... Bc5 {[%clk
0:01:42.7]} 10. Ne4 {[%clk 0:02:19.7]} 10... Nd4 {[%clk 0:01:35.4]} 11. Qd3
{[%clk 0:01:25.9]} 11... Bb4+ {[%clk 0:00:35.3]} 12. Nc3 {[%clk 0:01:15.2]}
12... c5 {[%clk 0:00:16.5]} 13. h3 {[%clk 0:00:53.4]} 13... Nh6 {[%clk
0:00:14.9]} 14. Bxh6 {[%clk 0:00:45]} 14... gxh6 {[%clk 0:00:15.8]} 15. O-O-O
{[%clk 0:00:38.5]} 15... Qa5 {[%clk 0:00:13.8]} 16. Nxd4 {[%clk 0:00:22.2]}
16... cxd4 {[%clk 0:00:13.6]} 17. Qxd4 {[%clk 0:00:21.9]} 17... Bxc3 {[%clk
0:00:13.7]} 18. Qxc3 {[%clk 0:00:20.1]} 18... Qxa2 {[%clk 0:00:13.7]} 19. Qc2
{[%clk 0:00:09.2]} 19... b6 {[%clk 0:00:10.9]} 20. Bd3 {[%clk 0:00:09.1]} 20...
Bb7 {[%clk 0:00:09.2]} 21. Bxh7+ {[%clk 0:00:09.1]} 21... Kh8 {[%clk 0:00:09.4]}
22. Be4 {[%clk 0:00:08.8]} 22... Bxe4 {[%clk 0:00:08.5]} 23. Qxe4 {[%clk
0:00:08.9]} 23... Rac8 {[%clk 0:00:09.1]} 24. Rd4 {[%clk 0:00:05.6]} 24... Qa1+
{[%clk 0:00:09.2]} 25. Qb1 {[%clk 0:00:03.6]} 25... Qa4 {[%clk 0:00:08]} 26. Qe4
{[%clk 0:00:03.6]} 26... b5 {[%clk 0:00:07.9]} 27. Qh4 {[%clk 0:00:03.7]} 27...
Kh7 {[%clk 0:00:05.2]} 28. Qe4+ {[%clk 0:00:02.4]} 28... Kh8 {[%clk 0:00:05.6]}
29. Qh4 {[%clk 0:00:02.7]} 29... Rxc4+ {[%clk 0:00:03.8]} 30. Rxc4 {[%clk
0:00:02.1]} 30... Qxc4+ {[%clk 0:00:04.7]} 31. Qxc4 {[%clk 0:00:02.4]} 31...
bxc4 {[%clk 0:00:05.6]} 32. Kd2 {[%clk 0:00:03]} 32... Rd8+ {[%clk 0:00:05.7]}
33. Kc3 {[%clk 0:00:03.6]} 33... Rd5 {[%clk 0:00:06.3]} 34. Kxc4 {[%clk
0:00:03.6]} 34... Rxe5 {[%clk 0:00:06.6]} 35. Rd1 {[%clk 0:00:04]} 35... Rf5
{[%clk 0:00:06.9]} 36. Rd2 {[%clk 0:00:04.2]} 36... a6 {[%clk 0:00:06.7]} 37. b4
{[%clk 0:00:04.6]} 37... Kg7 {[%clk 0:00:07.2]} 38. g3 {[%clk 0:00:04.1]} 38...
h5 {[%clk 0:00:07.7]} 39. h4 {[%clk 0:00:04.1]} 39... Kf6 {[%clk 0:00:07.6]} 40.
Kb3 {[%clk 0:00:02.4]} 40... Ke5 {[%clk 0:00:07.6]} 41. Kc4 {[%clk 0:00:02.8]}
41... Kf6 {[%clk 0:00:07.5]} 42. Re2 {[%clk 0:00:02.9]} 42... Ke7 {[%clk
0:00:07.4]} 43. Kc3 {[%clk 0:00:03.4]} 43... Kd6 {[%clk 0:00:07.7]} 44. Kb3
{[%clk 0:00:04.1]} 44... Kc6 {[%clk 0:00:08]} 45. Kc4 {[%clk 0:00:04.4]} 45...
Kb6 {[%clk 0:00:07.8]} 46. Kb3 {[%clk 0:00:04.7]} 46... Rf3+ {[%clk 0:00:07.8]}
47. Ka4 {[%clk 0:00:04.1]} 47... Rc3 {[%clk 0:00:06.9]} 48. Rd2 {[%clk
0:00:04.1]} 48... Rc4 {[%clk 0:00:06.8]} 49. Kb3 {[%clk 0:00:03.7]} 49... Re4
{[%clk 0:00:06.4]} 50. Rd6+ {[%clk 0:00:03.7]} 50... Kb5 {[%clk 0:00:06]} 51.
Rd7 {[%clk 0:00:03.4]} 51... Rxb4+ {[%clk 0:00:06.1]} 52. Kc3 {[%clk 0:00:03.6]}
52... Rc4+ {[%clk 0:00:06.4]} 53. Kd3 {[%clk 0:00:03.9]} 53... Rc5 {[%clk
0:00:05.1]} 54. Rb7+ {[%clk 0:00:04.1]} 54... Kc6 {[%clk 0:00:05.3]} 55. Rxf7
{[%clk 0:00:03.9]} 55... Rf5 {[%clk 0:00:04.6]} 56. Ra7 {[%clk 0:00:02.6]} 56...
Kb6 {[%clk 0:00:04.4]} 57. Ra8 {[%clk 0:00:02.4]} 57... Rxf2 {[%clk 0:00:04.4]}
58. Re8 {[%clk 0:00:02.7]} 58... Rf3+ {[%clk 0:00:04.5]} 59. Ke2 {[%clk
0:00:03.3]} 59... Rxg3 {[%clk 0:00:05]} 60. Rxe6+ {[%clk 0:00:04]} 60... Kb7
{[%clk 0:00:05.4]} 61. Re5 {[%clk 0:00:04.1]} 61... Rg2+ {[%clk 0:00:05]} 62.
Kd3 {[%clk 0:00:03.7]} 62... Rg4 {[%clk 0:00:05.4]} 63. Rxh5 {[%clk 0:00:03.8]}
63... Kb6 {[%clk 0:00:05.9]} 64. Kc3 {[%clk 0:00:04.2]} 64... a5 {[%clk
0:00:06.2]} 65. Kb3 {[%clk 0:00:04.6]} 65... Rg3+ {[%clk 0:00:06.2]} 66. Ka4
{[%clk 0:00:04.9]} 66... Rg4+ {[%clk 0:00:06.7]} 67. Kb3 {[%clk 0:00:05.4]}
67... Ka6 {[%clk 0:00:07.3]} 68. Ka3 {[%clk 0:00:05.3]} 68... Kb6 {[%clk
0:00:07.2]} 69. Kb3 {[%clk 0:00:05.8]} 1/2-1/2

[Event "*** Titled Tuesday Blitz"]
[Site "Chess.com"]
[Date "2020.12.29"]
[Round "5"]
[White "dretch"]
[Black "Bigfish1995"]
[Result "0-1"]
[WhiteElo "2842"]
[BlackElo "3015"]
[TimeControl "180+1"]
[EndTime "10:55:59 PST"]
[Termination "Bigfish1995 won by checkmate"]

1. d4 {[%clk 0:03:00.9]} 1... Nf6 {[%clk 0:02:59.1]} 2. c4 {[%clk 0:03:01.2]}
2... g6 {[%clk 0:02:56.7]} 3. Nc3 {[%clk 0:03:01.5]} 3... Bg7 {[%clk 0:02:56.8]}
4. e4 {[%clk 0:03:01.8]} 4... d6 {[%clk 0:02:57.4]} 5. Nf3 {[%clk 0:03:01.9]}
5... O-O {[%clk 0:02:57.6]} 6. h3 {[%clk 0:03:02.1]} 6... Nc6 {[%clk 0:02:40.7]}
7. d5 {[%clk 0:02:58.2]} 7... Nb4 {[%clk 0:02:40.5]} 8. Be2 {[%clk 0:02:55.1]}
8... a5 {[%clk 0:02:36.1]} 9. O-O {[%clk 0:02:53.4]} 9... e6 {[%clk 0:02:36.3]}
10. Bg5 {[%clk 0:02:48.1]} 10... h6 {[%clk 0:02:34.4]} 11. Be3 {[%clk
0:02:46.3]} 11... Re8 {[%clk 0:02:33.5]} 12. Qd2 {[%clk 0:02:42]} 12... Kh7
{[%clk 0:02:26.2]} 13. Nd4 {[%clk 0:02:25]} 13... exd5 {[%clk 0:02:14.6]} 14.
exd5 {[%clk 0:02:24.4]} 14... Bd7 {[%clk 0:02:13.2]} 15. Bf3 {[%clk 0:02:13]}
15... Na6 {[%clk 0:01:38.9]} 16. Rfe1 {[%clk 0:02:07.3]} 16... Nc5 {[%clk
0:01:37]} 17. Bf4 {[%clk 0:02:06.7]} 17... a4 {[%clk 0:01:21.4]} 18. Rxe8 {[%clk
0:02:00.3]} 18... Bxe8 {[%clk 0:01:21.5]} 19. Re1 {[%clk 0:01:57.1]} 19... Nfd7
{[%clk 0:01:21.3]} 20. Be2 {[%clk 0:01:41.8]} 20... Nb6 {[%clk 0:01:03]} 21. Bf1
{[%clk 0:01:34.9]} 21... Bd7 {[%clk 0:01:00.6]} 22. Ndb5 {[%clk 0:01:08.9]}
22... Bxb5 {[%clk 0:00:57.1]} 23. Nxb5 {[%clk 0:01:08.8]} 23... Nbd7 {[%clk
0:00:57.8]} 24. Qc2 {[%clk 0:00:52.4]} 24... Qf6 {[%clk 0:00:50.8]} 25. Bc1
{[%clk 0:00:51]} 25... c6 {[%clk 0:00:50.5]} 26. Nc7 {[%clk 0:00:41.2]} 26...
Rc8 {[%clk 0:00:44.6]} 27. Ne8 {[%clk 0:00:41.3]} 27... Qh4 {[%clk 0:00:29.4]}
28. Nxg7 {[%clk 0:00:39.5]} 28... Kxg7 {[%clk 0:00:29.4]} 29. dxc6 {[%clk
0:00:35.8]} 29... Rxc6 {[%clk 0:00:27.6]} 30. Qc3+ {[%clk 0:00:33.4]} 30... Qf6
{[%clk 0:00:26.8]} 31. Qe3 {[%clk 0:00:30.9]} 31... g5 {[%clk 0:00:17.8]} 32.
Bd2 {[%clk 0:00:29.5]} 32... Ne5 {[%clk 0:00:14.3]} 33. Bc3 {[%clk 0:00:29.5]}
33... Ncd7 {[%clk 0:00:14.6]} 34. Rd1 {[%clk 0:00:26.7]} 34... Kg8 {[%clk
0:00:11]} 35. Rd4 {[%clk 0:00:21]} 35... Qe6 {[%clk 0:00:10.9]} 36. f4 {[%clk
0:00:20.3]} 36... Ng6 {[%clk 0:00:05.1]} 37. Qxe6 {[%clk 0:00:19.2]} 37... fxe6
{[%clk 0:00:06]} 38. fxg5 {[%clk 0:00:19.9]} 38... hxg5 {[%clk 0:00:06.5]} 39.
Rg4 {[%clk 0:00:19.8]} 39... Nge5 {[%clk 0:00:06.5]} 40. Rxg5+ {[%clk
0:00:19.7]} 40... Kf7 {[%clk 0:00:07.1]} 41. b3 {[%clk 0:00:20.2]} 41... axb3
{[%clk 0:00:07.2]} 42. axb3 {[%clk 0:00:21.1]} 42... Ra6 {[%clk 0:00:07.4]} 43.
h4 {[%clk 0:00:20.9]} 43... Ra3 {[%clk 0:00:07.2]} 44. Rg3 {[%clk 0:00:20.3]}
44... Nf6 {[%clk 0:00:03.3]} 45. Bb4 {[%clk 0:00:19.5]} 45... Ra1 {[%clk
0:00:02.3]} 46. Bxd6 {[%clk 0:00:19.8]} 46... Nc6 {[%clk 0:00:02]} 47. Rf3
{[%clk 0:00:19.5]} 47... e5 {[%clk 0:00:02.5]} 48. g4 {[%clk 0:00:18.5]} 48...
Ke6 {[%clk 0:00:02.9]} 49. g5 {[%clk 0:00:18.7]} 49... Ne4 {[%clk 0:00:03]} 50.
Bf8 {[%clk 0:00:18.9]} 50... Nd4 {[%clk 0:00:03]} 51. Re3 {[%clk 0:00:16.9]}
51... Nd2 {[%clk 0:00:02.9]} 52. Bg7 {[%clk 0:00:11.4]} 52... Rxf1+ {[%clk
0:00:03]} 53. Kg2 {[%clk 0:00:11.8]} 53... Rf5 {[%clk 0:00:03.7]} 54. Bh8 {[%clk
0:00:09.5]} 54... N2f3 {[%clk 0:00:03.8]} 55. Kg3 {[%clk 0:00:09.4]} 55... Nd2
{[%clk 0:00:02.2]} 56. Kg4 {[%clk 0:00:09.5]} 56... Rf4+ {[%clk 0:00:02.3]} 57.
Kh5 {[%clk 0:00:09.2]} 57... Ne4 {[%clk 0:00:02.7]} 58. Kg6 {[%clk 0:00:08.1]}
58... Nf5 {[%clk 0:00:02.9]} 59. Re1 {[%clk 0:00:07.1]} 59... Nxh4+ {[%clk
0:00:03]} 60. Kh5 {[%clk 0:00:07.6]} 60... Nf3 {[%clk 0:00:03.4]} 61. Ra1 {[%clk
0:00:05.5]} 61... Rh4+ {[%clk 0:00:03.6]} 62. Kg6 {[%clk 0:00:05.4]} 62... Rxh8
{[%clk 0:00:04.5]} 63. Ra7 {[%clk 0:00:05.2]} 63... Rg8+ {[%clk 0:00:04.8]} 64.
Kh6 {[%clk 0:00:05.7]} 64... Nfxg5 {[%clk 0:00:04]} 65. Rxb7 {[%clk 0:00:06.1]}
65... Nf7+ {[%clk 0:00:04.6]} 66. Kh7 {[%clk 0:00:04.6]} 66... Nf6# {[%clk
0:00:04.7]} 0-1

[Event "*** Titled Tuesday Blitz"]
[Site "Chess.com"]
[Date "2020.12.29"]
[Round "5"]
[White "hansen"]
[Black "tigra"]
[Result "0-1"]
[WhiteElo "2896"]
[BlackElo "2838"]
[TimeControl "180+1"]
[EndTime "10:56:02 PST"]
[Termination "tigra won by resignation"]

1. e4 {[%clk 0:02:53.1]} 1... c5 {[%clk 0:02:34.4]} 2. Nf3 {[%clk 0:02:52.1]}
2... d6 {[%clk 0:02:34.7]} 3. Bb5+ {[%clk 0:02:44.4]} 3... Nd7 {[%clk
0:02:34.3]} 4. c3 {[%clk 0:02:40.6]} 4... a6 {[%clk 0:02:33.8]} 5. Ba4 {[%clk
0:02:40.4]} 5... b5 {[%clk 0:02:33.8]} 6. Bc2 {[%clk 0:02:40.4]} 6... e5 {[%clk
0:02:32.1]} 7. d4 {[%clk 0:02:40]} 7... Ngf6 {[%clk 0:02:30.1]} 8. O-O {[%clk
0:02:38.6]} 8... Rb8 {[%clk 0:02:28.7]} 9. a4 {[%clk 0:02:37.5]} 9... b4 {[%clk
0:02:29]} 10. d5 {[%clk 0:02:36.9]} 10... b3 {[%clk 0:01:57.4]} 11. Bd3 {[%clk
0:02:31.8]} 11... c4 {[%clk 0:01:48.3]} 12. Bxc4 {[%clk 0:02:31.9]} 12... Nc5
{[%clk 0:01:45.1]} 13. Nbd2 {[%clk 0:02:29.5]} 13... Nfxe4 {[%clk 0:01:45]} 14.
Nxe4 {[%clk 0:02:25.1]} 14... Nxe4 {[%clk 0:01:45.9]} 15. Bxb3 {[%clk
0:02:25.6]} 15... Bg4 {[%clk 0:01:39.6]} 16. Bc2 {[%clk 0:02:25.8]} 16... f5
{[%clk 0:01:36.3]} 17. a5 {[%clk 0:02:04.9]} 17... Be7 {[%clk 0:01:31.8]} 18. h3
{[%clk 0:01:31.8]} 18... Bh5 {[%clk 0:01:25.4]} 19. Bxe4 {[%clk 0:01:30]} 19...
fxe4 {[%clk 0:01:26.3]} 20. Qa4+ {[%clk 0:01:30.3]} 20... Qd7 {[%clk 0:01:25.6]}
21. Qxd7+ {[%clk 0:01:22.1]} 21... Kxd7 {[%clk 0:01:25.9]} 22. Nd2 {[%clk
0:01:22.7]} 22... Rb5 {[%clk 0:01:13.5]} 23. c4 {[%clk 0:01:17.7]} 23... Rb4
{[%clk 0:01:13.7]} 24. b3 {[%clk 0:01:17.5]} 24... Rhb8 {[%clk 0:00:59.9]} 25.
Re1 {[%clk 0:01:16.1]} 25... Bg6 {[%clk 0:00:52.2]} 26. Ba3 {[%clk 0:00:50.7]}
26... R4b7 {[%clk 0:00:52]} 27. c5 {[%clk 0:00:40.7]} 27... dxc5 {[%clk
0:00:50.2]} 28. Nc4 {[%clk 0:00:41.1]} 28... Rxb3 {[%clk 0:00:35.6]} 29. Nxe5+
{[%clk 0:00:41.4]} 29... Kd6 {[%clk 0:00:36.1]} 30. Nc6 {[%clk 0:00:41.9]} 30...
R8b5 {[%clk 0:00:32.1]} 31. Nd4 {[%clk 0:00:25.5]} 31... Bf6 {[%clk 0:00:22.4]}
32. Nxb3 {[%clk 0:00:19.4]} 32... Rxb3 {[%clk 0:00:22.3]} 33. Ra2 {[%clk
0:00:19.8]} 33... Bd4 {[%clk 0:00:20.2]} 34. Bc1 {[%clk 0:00:19.2]} 34... Bf7
{[%clk 0:00:16.6]} 35. Bf4+ {[%clk 0:00:17.9]} 35... Kxd5 {[%clk 0:00:16.6]} 36.
Rc1 {[%clk 0:00:18.3]} 36... c4 {[%clk 0:00:14.5]} 37. Rd2 {[%clk 0:00:17.4]}
37... Rd3 {[%clk 0:00:14.6]} 38. Rdc2 {[%clk 0:00:13.8]} 38... c3 {[%clk
0:00:14.9]} 39. Rb1 {[%clk 0:00:12.1]} 39... Be8 {[%clk 0:00:14.7]} 40. Rb4
{[%clk 0:00:11.3]} 40... Bb5 {[%clk 0:00:14.1]} 41. Ra2 {[%clk 0:00:10.1]} 41...
Rd1+ {[%clk 0:00:12.6]} 42. Kh2 {[%clk 0:00:10.7]} 42... Bc5 {[%clk 0:00:12.4]}
43. Rxb5 {[%clk 0:00:07.6]} 43... axb5 {[%clk 0:00:12.5]} 44. a6 {[%clk
0:00:08.3]} 44... Ba7 {[%clk 0:00:12.9]} 45. Kg3 {[%clk 0:00:06.3]} 45... b4
{[%clk 0:00:12.4]} 46. Ra5+ {[%clk 0:00:05.2]} 46... Kc4 {[%clk 0:00:12.8]} 47.
Re5 {[%clk 0:00:05.6]} 47... b3 {[%clk 0:00:13.1]} 48. Re7 {[%clk 0:00:06.1]}
48... Rd3+ {[%clk 0:00:08.2]} 49. Kg4 {[%clk 0:00:06]} 49... Bxf2 {[%clk
0:00:08.1]} 50. Rc7+ {[%clk 0:00:05.3]} 50... Kb5 {[%clk 0:00:08.2]} 51. Rb7+
{[%clk 0:00:04.4]} 51... Kc4 {[%clk 0:00:08.3]} 52. Rc7+ {[%clk 0:00:04.1]}
52... Kd5 {[%clk 0:00:08]} 53. a7 {[%clk 0:00:03.1]} 53... Bxa7 {[%clk
0:00:07.5]} 54. Rxa7 {[%clk 0:00:04]} 54... b2 {[%clk 0:00:08]} 55. Rb7 {[%clk
0:00:04.6]} 55... Kc6 {[%clk 0:00:06.4]} 56. Rc7+ {[%clk 0:00:04.5]} 56... Kb6
{[%clk 0:00:06.2]} 57. Rc8 {[%clk 0:00:05.1]} 57... e3 {[%clk 0:00:04]} 58. Kf3
{[%clk 0:00:04.8]} 58... Ka7 {[%clk 0:00:03]} 59. Rc7+ {[%clk 0:00:03]} 59...
Ka6 {[%clk 0:00:03.4]} 60. Rc6+ {[%clk 0:00:02.5]} 60... Ka5 {[%clk 0:00:03.8]}
61. Rc8 {[%clk 0:00:02.5]} 61... Ka4 {[%clk 0:00:03.2]} 62. Rb8 {[%clk
0:00:02.3]} 62... Ka3 {[%clk 0:00:03.4]} 63. Bxe3 {[%clk 0:00:01.6]} 63... Rxe3+
{[%clk 0:00:03.4]} 64. Kxe3 {[%clk 0:00:02]} 64... c2 {[%clk 0:00:04.3]} 65.
Ra8+ {[%clk 0:00:01.3]} 65... Kb3 {[%clk 0:00:04.8]} 66. Rb8+ {[%clk 0:00:01.4]}
66... Ka2 {[%clk 0:00:05.4]} 67. Ra8+ {[%clk 0:00:02.3]} 67... Kb1 {[%clk
0:00:05.8]} 68. Rc8 {[%clk 0:00:02.7]} 68... c1=N {[%clk 0:00:06.2]} 0-1

[Event "*** Titled Tuesday Blitz"]
[Site "Chess.com"]
[Date "2020.12.29"]
[Round "5"]
[White "ARMQUEEN"]
[Black "MaevskiyNikolay"]
[Result "0-1"]
[WhiteElo "2411"]
[BlackElo "2592"]
[TimeControl "180+1"]
[EndTime "10:56:06 PST"]
[Termination "MaevskiyNikolay won by resignation"]

1. e4 {[%clk 0:03:00.9]} 1... c6 {[%clk 0:03:00]} 2. d4 {[%clk 0:03:00.7]} 2...
d5 {[%clk 0:03:00.6]} 3. Nc3 {[%clk 0:03:00.2]} 3... dxe4 {[%clk 0:03:00.4]} 4.
Nxe4 {[%clk 0:03:00.3]} 4... Bf5 {[%clk 0:03:01]} 5. Ng3 {[%clk 0:03:00]} 5...
Bg6 {[%clk 0:03:01.5]} 6. h4 {[%clk 0:03:00.1]} 6... h6 {[%clk 0:03:01.8]} 7.
Nh3 {[%clk 0:03:00.3]} 7... Nf6 {[%clk 0:02:55.9]} 8. Nf4 {[%clk 0:02:58.6]}
8... Bh7 {[%clk 0:02:56]} 9. c3 {[%clk 0:02:57.8]} 9... e6 {[%clk 0:02:55.6]}
10. Ngh5 {[%clk 0:02:53]} 10... Nbd7 {[%clk 0:02:53]} 11. Bd3 {[%clk 0:02:44]}
11... Bxd3 {[%clk 0:02:50.7]} 12. Qxd3 {[%clk 0:02:44.9]} 12... Nxh5 {[%clk
0:02:49.4]} 13. Nxh5 {[%clk 0:02:44.3]} 13... Nf6 {[%clk 0:02:49.6]} 14. Ng3
{[%clk 0:02:41.4]} 14... Qd5 {[%clk 0:02:46.3]} 15. f3 {[%clk 0:02:39.1]} 15...
O-O-O {[%clk 0:02:42.9]} 16. Qe2 {[%clk 0:02:36.9]} 16... Bd6 {[%clk 0:02:38.9]}
17. Nf1 {[%clk 0:02:35.3]} 17... e5 {[%clk 0:02:31.9]} 18. Ne3 {[%clk 0:02:34]}
18... Qe6 {[%clk 0:02:29.8]} 19. Nc2 {[%clk 0:02:26.5]} 19... Rhe8 {[%clk
0:02:25.2]} 20. Be3 {[%clk 0:02:22.3]} 20... Nd5 {[%clk 0:02:17.5]} 21. O-O-O
{[%clk 0:01:43.5]} 21... exd4 {[%clk 0:02:06.3]} 22. Rxd4 {[%clk 0:01:41.1]}
22... Nxe3 {[%clk 0:02:02.8]} 23. Re4 {[%clk 0:01:41.1]} 23... Qxa2 {[%clk
0:01:42.6]} 24. Qxe3 {[%clk 0:01:40.2]} 24... Rxe4 {[%clk 0:01:29.1]} 25. Qxe4
{[%clk 0:01:37.6]} 25... Qe6 {[%clk 0:01:21.5]} 26. Qa4 {[%clk 0:01:33.6]} 26...
Kb8 {[%clk 0:01:10.8]} 27. Re1 {[%clk 0:01:31.5]} 27... Qg6 {[%clk 0:01:07.1]}
28. g4 {[%clk 0:01:15.8]} 28... Bg3 {[%clk 0:01:06.4]} 29. Rg1 {[%clk 0:01:08]}
29... Qd6 {[%clk 0:00:58.5]} 30. Qb3 {[%clk 0:00:58.3]} 30... Qf4+ {[%clk
0:00:51.1]} 31. Kb1 {[%clk 0:00:57.7]} 31... Qxf3 {[%clk 0:00:50.1]} 32. Nd4
{[%clk 0:00:53.9]} 32... Qe4+ {[%clk 0:00:45.6]} 33. Ka1 {[%clk 0:00:53.2]}
33... Rd7 {[%clk 0:00:38.1]} 34. Rxg3 {[%clk 0:00:46.7]} 34... Qe1+ {[%clk
0:00:38.1]} 35. Ka2 {[%clk 0:00:46.6]} 35... Qxg3 {[%clk 0:00:38]} 36. Nxc6+
{[%clk 0:00:47.5]} 36... Kc7 {[%clk 0:00:36.8]} 37. Nd4 {[%clk 0:00:47.3]} 37...
a6 {[%clk 0:00:34.3]} 38. Qc4+ {[%clk 0:00:47.1]} 38... Kb8 {[%clk 0:00:33.1]}
39. Nf5 {[%clk 0:00:46.9]} 39... Qe5 {[%clk 0:00:29.8]} 40. Qb4 {[%clk
0:00:38.9]} 40... Qe6+ {[%clk 0:00:26.8]} 41. c4 {[%clk 0:00:27.5]} 41... f6
{[%clk 0:00:21.3]} 42. Qc5 {[%clk 0:00:21.7]} 42... Rc7 {[%clk 0:00:17.8]} 43.
Qf8+ {[%clk 0:00:20.9]} 43... Ka7 {[%clk 0:00:18]} 44. Nd6 {[%clk 0:00:19.9]}
44... Qd7 {[%clk 0:00:15]} 45. b3 {[%clk 0:00:17.3]} 45... Rc6 {[%clk
0:00:13.9]} 46. Ne4 {[%clk 0:00:14.9]} 46... Qd3 {[%clk 0:00:13]} 47. Qe7 {[%clk
0:00:12.2]} 47... Qc2+ {[%clk 0:00:12]} 48. Ka3 {[%clk 0:00:12.6]} 48... Qc1+
{[%clk 0:00:11.9]} 49. Kb4 {[%clk 0:00:12.9]} 49... Qe1+ {[%clk 0:00:11.6]} 50.
Ka3 {[%clk 0:00:11.8]} 50... Qe3 {[%clk 0:00:11.6]} 51. Qe8 {[%clk 0:00:06.9]}
51... Rxc4 {[%clk 0:00:10.1]} 52. Nd6 {[%clk 0:00:06]} 52... Qc5+ {[%clk
0:00:09.1]} 53. Kb2 {[%clk 0:00:05.9]} 53... Rc2+ {[%clk 0:00:09.2]} 54. Kb1
{[%clk 0:00:06.3]} 54... Rc1+ {[%clk 0:00:09.3]} 55. Ka2 {[%clk 0:00:07.2]}
55... Qc2+ {[%clk 0:00:06.8]} 56. Ka3 {[%clk 0:00:08.1]} 56... Ra1+ {[%clk
0:00:06.9]} 57. Kb4 {[%clk 0:00:08.6]} 57... Qd2+ {[%clk 0:00:05.9]} 58. Kc5
{[%clk 0:00:09]} 58... Rc1+ {[%clk 0:00:05.7]} 59. Nc4 {[%clk 0:00:09.2]} 59...
Qf2+ {[%clk 0:00:06.2]} 60. Kb4 {[%clk 0:00:09]} 60... Qe1+ {[%clk 0:00:05.4]}
61. Qxe1 {[%clk 0:00:08.2]} 61... Rxe1 {[%clk 0:00:06]} 62. Nd6 {[%clk
0:00:08.2]} 62... Rg1 {[%clk 0:00:06.5]} 63. Kc5 {[%clk 0:00:07.8]} 63... Rxg4
{[%clk 0:00:06.1]} 64. Nc8+ {[%clk 0:00:08.7]} 64... Kb8 {[%clk 0:00:04.8]} 65.
Nd6 {[%clk 0:00:09.6]} 65... Rxh4 {[%clk 0:00:04.8]} 66. b4 {[%clk 0:00:10.5]}
66... Rh5+ {[%clk 0:00:05.2]} 67. Kb6 {[%clk 0:00:09.9]} 67... Rd5 {[%clk
0:00:04.9]} 0-1

[Event "*** Titled Tuesday Blitz"]
[Site "Chess.com"]
[Date "2020.12.29"]
[Round "5"]
[White "ChessArchitect64"]
[Black "Martins-BR"]
[Result "0-1"]
[WhiteElo "2075"]
[BlackElo "2271"]
[TimeControl "180+1"]
[EndTime "10:56:08 PST"]
[Termination "Martins-BR won on time"]

1. e4 {[%clk 0:03:00.8]} 1... c5 {[%clk 0:02:59.5]} 2. Nf3 {[%clk 0:02:59.2]}
2... Nc6 {[%clk 0:02:59.2]} 3. Bb5 {[%clk 0:02:58.2]} 3... d6 {[%clk 0:02:58.7]}
4. O-O {[%clk 0:02:57.4]} 4... Bd7 {[%clk 0:02:58]} 5. c3 {[%clk 0:02:54.1]}
5... a6 {[%clk 0:02:54.3]} 6. Ba4 {[%clk 0:02:51.4]} 6... b5 {[%clk 0:02:51.9]}
7. Bc2 {[%clk 0:02:48]} 7... Nf6 {[%clk 0:02:51.1]} 8. d4 {[%clk 0:02:32.1]}
8... Qc7 {[%clk 0:02:41]} 9. d5 {[%clk 0:02:15.6]} 9... Ne5 {[%clk 0:02:21.1]}
10. Nxe5 {[%clk 0:02:14.5]} 10... dxe5 {[%clk 0:02:22]} 11. f4 {[%clk
0:02:12.2]} 11... g6 {[%clk 0:01:32.7]} 12. fxe5 {[%clk 0:02:05.6]} 12... Qxe5
{[%clk 0:01:32.7]} 13. Bf4 {[%clk 0:02:04.6]} 13... Qh5 {[%clk 0:01:32.4]} 14.
Qd2 {[%clk 0:01:58.7]} 14... g5 {[%clk 0:01:19.4]} 15. Bg3 {[%clk 0:01:51.8]}
15... Bg7 {[%clk 0:01:10.9]} 16. e5 {[%clk 0:01:50.9]} 16... Ng4 {[%clk
0:01:09.6]} 17. h3 {[%clk 0:01:50.5]} 17... Nxe5 {[%clk 0:01:06.8]} 18. Qe3
{[%clk 0:01:35]} 18... g4 {[%clk 0:00:41.3]} 19. h4 {[%clk 0:01:19.5]} 19... Rc8
{[%clk 0:00:27.5]} 20. Nd2 {[%clk 0:01:17.6]} 20... O-O {[%clk 0:00:19.6]} 21.
Rae1 {[%clk 0:00:59.3]} 21... Ng6 {[%clk 0:00:17.8]} 22. d6 {[%clk 0:00:12.5]}
22... exd6 {[%clk 0:00:15.3]} 23. Bxd6 {[%clk 0:00:10.3]} 23... Rfe8 {[%clk
0:00:14.4]} 24. Qf2 {[%clk 0:00:10.4]} 24... Nxh4 {[%clk 0:00:13.6]} 25. Rxe8+
{[%clk 0:00:06.1]} 25... Rxe8 {[%clk 0:00:13]} 26. Bg3 {[%clk 0:00:05.6]} 26...
Nf5 {[%clk 0:00:11.7]} 27. Bxf5 {[%clk 0:00:05.3]} 27... Bxf5 {[%clk 0:00:11.2]}
28. Qxf5 {[%clk 0:00:05.1]} 28... Qxf5 {[%clk 0:00:11.5]} 29. Rxf5 {[%clk
0:00:05]} 29... Re2 {[%clk 0:00:12.2]} 30. Rf2 {[%clk 0:00:04.6]} 30... Re6
{[%clk 0:00:09.8]} 31. Nf1 {[%clk 0:00:04.2]} 31... h5 {[%clk 0:00:09.2]} 32.
Rd2 {[%clk 0:00:04]} 32... Bh6 {[%clk 0:00:08.6]} 33. Rd8+ {[%clk 0:00:04.4]}
33... Kh7 {[%clk 0:00:07.6]} 34. Rd7 {[%clk 0:00:04.9]} 34... Kg6 {[%clk
0:00:07.1]} 35. Rd6 {[%clk 0:00:05.2]} 35... Kf5 {[%clk 0:00:06.8]} 36. Rxe6
{[%clk 0:00:05.4]} 36... fxe6 {[%clk 0:00:07.2]} 37. Bc7 {[%clk 0:00:05.9]}
37... c4 {[%clk 0:00:03.8]} 38. Bb6 {[%clk 0:00:06.8]} 38... Ke4 {[%clk
0:00:03.8]} 39. Bf2 {[%clk 0:00:07.1]} 39... Bg5 {[%clk 0:00:03.2]} 40. Ng3+
{[%clk 0:00:06.2]} 40... Kd3 {[%clk 0:00:02.6]} 41. Kf1 {[%clk 0:00:06.3]} 41...
Kc2 {[%clk 0:00:02.7]} 42. Ne4 {[%clk 0:00:06.7]} 42... Bc1 {[%clk 0:00:02.4]}
43. b3 {[%clk 0:00:06.6]} 43... cxb3 {[%clk 0:00:02]} 44. axb3 {[%clk
0:00:06.8]} 44... Kxb3 {[%clk 0:00:02.9]} 45. Bc5 {[%clk 0:00:06.9]} 45... Bb2
{[%clk 0:00:03.1]} 46. Bb4 {[%clk 0:00:06.9]} 46... Ka4 {[%clk 0:00:01.1]} 47.
Ke2 {[%clk 0:00:06.6]} 47... a5 {[%clk 0:00:02]} 48. Bd6 {[%clk 0:00:06.7]}
48... Kb3 {[%clk 0:00:02.1]} 49. Kd3 {[%clk 0:00:05.8]} 49... a4 {[%clk
0:00:02.5]} 50. Nc5+ {[%clk 0:00:06.2]} 50... Ka2 {[%clk 0:00:02.3]} 51. Ne4
{[%clk 0:00:06.4]} 51... a3 {[%clk 0:00:02.4]} 52. Nd2 {[%clk 0:00:06.8]} 52...
Ka1 {[%clk 0:00:02.3]} 53. Nb3+ {[%clk 0:00:07.2]} 53... Kb1 {[%clk 0:00:01.8]}
54. Nd2+ {[%clk 0:00:07.6]} 54... Kc1 {[%clk 0:00:02.1]} 55. Nb3+ {[%clk
0:00:07.3]} 55... Kd1 {[%clk 0:00:02.2]} 56. c4 {[%clk 0:00:05.9]} 56... bxc4+
{[%clk 0:00:01.3]} 57. Kxc4 {[%clk 0:00:06.2]} 57... a2 {[%clk 0:00:02.2]} 58.
Ba3 {[%clk 0:00:03.9]} 58... a1=Q {[%clk 0:00:02.3]} 59. Nxa1 {[%clk 0:00:03.2]}
59... Bxa1 {[%clk 0:00:03.2]} 60. Bd6 {[%clk 0:00:02.9]} 60... Ke2 {[%clk
0:00:03.7]} 61. g3 {[%clk 0:00:03.2]} 61... Kf2 {[%clk 0:00:03.9]} 62. Be5
{[%clk 0:00:01.6]} 62... Kg2 {[%clk 0:00:03.9]} 0-1